bitfinex/quotes_ETHUSD_20250213
["timestamp","ask_amount","ask_price","bid_price","bid_amount"]
[1739453691683,2.30881694,2671.5,2671.4,3.0]
[1739453691880,2.30881694,2671.5,2670.8,0.34479063]
[1739453692128,3.74357,2671.3,2670.8,0.34479063]
[1739453692282,2.30881694,2671.5,2670.8,0.34479063]
[1739453692487,2.30881694,2671.5,2671.0,3.74386]
[1739453693242,0.7623,2672.7,2671.9,3.0]
[1739453693585,0.7997058,2672.7,2671.5,3.7431]
[1739453693930,3.74232,2672.2,2671.5,3.0]
[1739453694585,3.74202,2672.4,2671.3,3.7434]
[1739453694586,3.74253,2672.0,2671.3,3.7434]
[1739453694787,3.74253,2672.0,2670.9,0.7978]
[1739453694788,3.74309,2671.6,2670.9,0.7978]
[1739453695028,3.74309,2671.6,2670.9,3.74401]
[1739453695231,0.7917,2671.8,2671.3,3.0]
[1739453695684,0.7829,2672.2,2671.5,3.0]
[1739453695889,0.0075,2672.7,2671.7,3.0]
[1739453695890,3.7422,2672.3,2671.7,3.0]
[1739453696189,0.472,2672.5,2671.4,3.74328]
[1739453696389,3.74287,2671.8,2671.0,3.74378]
[1739453696620,0.55,2672.4,2671.5,3.74315]
[1739453696805,3.74217,2672.3,2671.2,3.0]
[1739453697008,4.2139,2672.5,2671.9,3.0]
[1739453697531,4.21388,2672.5,2671.2,0.674374]
[1739453697730,3.74196,2672.4,2671.6,3.0]
[1739453697931,3.74196,2672.4,2671.3,3.0]
[1739453697932,0.0374058,2672.3,2671.3,3.0]
[1739453698236,3.74281,2671.8,2671.3,3.0]
[1739453698400,7.48519,2672.0,2671.3,6.74341]
[1739453698587,4.21203,2672.4,2671.7,3.0]
[1739453698791,3.74217,2672.3,2671.7,3.0]
[1739453698993,3.74231,2672.2,2671.7,3.0]
[1739453699222,4.21201,2672.4,2671.6,3.74293]
[1739453699421,4.52555,2672.7,2671.7,0.03742485]
[1739453699605,4.52555,2672.7,2672.0,3.7424]
[1739453699606,0.784,2672.7,2672.0,3.7424]
[1739453699931,0.784,2672.7,2672.3,3.74208]
[1739453700388,0.7671,2673.2,2672.1,6.74228]
[1739453700593,3.74161,2672.7,2671.9,3.74252]
[1739453700795,3.74206,2672.4,2671.7,3.74286]
[1739453701030,3.7419,2672.5,2671.9,3.74263]
[1739453701330,0.4115668,2672.7,2671.2,0.0075]
[1739453701331,3.74231,2672.2,2671.5,3.74312]
[1739453701536,3.74168,2672.6,2672.0,3.74248]
[1739453701735,0.0374058,2672.5,2671.8,0.34479325]
[1739453702040,3.74265,2671.9,2671.8,0.34479325]
[1739453702338,7.48487,2672.1,2671.8,0.34479325]
[1739453702510,3.74241,2672.1,2671.8,0.34479325]
[1739453702712,3.74241,2672.1,2671.4,4.08806325]
[1739453702925,3.74241,2672.1,2671.4,0.34479325]
[1739453703123,0.466,2672.1,2671.4,3.34479325]
[1739453703324,0.466,2672.1,2671.4,0.34479325]
[1739453703531,3.74321,2671.5,2671.4,0.34479325]
[1739453703725,0.466,2672.1,2671.4,0.34479325]
[1739453704081,3.74321,2671.5,2671.4,0.34479325]
[1739453704549,3.74367,2671.2,2670.5,3.7445]
[1739453704707,3.74445,2670.7,2670.1,1.17327846]
[1739453704901,7.48891,2670.7,2669.9,0.7863]
[1739453705214,3.74513,2670.2,2670.1,0.34561733]
[1739453705940,4.29513,2670.2,2670.1,0.34561733]
[1739453706115,0.464,2670.2,2670.1,0.34561733]
[1739453706316,0.464,2670.2,2670.1,3.74517]
[1739453706510,5.934,2670.7,2670.5,3.74457]
[1739453706716,5.934,2670.7,2670.4,3.0]
[1739453706937,3.7818958,2670.6,2669.7,4.54867]
[1739453707143,0.0374058,2670.6,2669.5,3.74592]
[1739453707365,3.74527,2670.1,2669.3,3.7596613]
[1739453707671,0.7995058,2670.0,2669.3,0.0134613]
[1739453707881,4.5448458,2670.0,2669.3,0.0134613]
[1739453708045,1.1738268,2670.0,2669.3,0.0134613]
[1739453708360,1.136421,2670.0,2669.3,0.0134613]
[1739453708565,0.0374058,2669.9,2669.3,0.0134613]
[1739453708781,0.7621,2670.0,2669.3,0.0134613]
[1739453708922,0.7621,2670.0,2669.3,3.7597113]
[1739453708923,4.50743,2670.0,2669.3,3.7597113]
[1739453709123,4.50743,2670.0,2669.3,0.0134613]
[1739453709366,3.74559,2669.8,2669.3,0.0134613]
[1739453709568,0.7621,2670.0,2669.3,0.0134613]
[1739453709890,0.55,2670.4,2669.3,0.0134613]
[1739453709891,0.7597,2670.9,2670.6,3.74447]
[1739453710021,4.97998462,2671.6,2669.5,3.805]
[1739453710022,3.11670942,2671.4,2670.7,0.03744345]
[1739453710365,3.11670942,2671.4,2670.8,3.7441]
[1739453710665,2.30880942,2671.4,2670.3,4.49518]
[1739453710835,2.30880942,2671.4,2670.4,0.48695366]
[1739453711038,2.30880942,2671.4,2671.3,6.74349]
[1739453711424,2.30880942,2671.4,2671.3,7.55019]
[1739453711667,5.935,2672.3,2671.3,0.7917]
[1739453711872,3.74291,2671.8,2671.3,0.7917]
[1739453712104,0.0374058,2671.7,2671.0,3.7438]
[1739453712313,3.74318,2671.6,2670.8,4.52828]
[1739453712476,0.0374058,2671.7,2670.9,3.0]
[1739453712812,3.74337,2671.4,2670.9,3.0]
[1739453713015,3.7803758,2671.7,2670.1,0.8161]
[1739453713222,4.20204,2671.7,2671.1,3.0]
[1739453713510,4.20204,2671.7,2670.9,3.74401]
[1739453713511,0.459,2671.7,2670.9,3.74401]
[1739453713667,3.7431,2671.6,2671.0,3.0]
[1739453713873,0.459,2671.7,2670.2,3.74503]
[1739453714198,0.458,2671.8,2670.7,3.74433]
[1739453714499,0.458,2671.9,2671.4,3.0]
[1739453714716,0.458,2671.9,2671.1,3.74364]
[1739453715013,0.0374058,2672.1,2670.9,0.827]
[1739453715322,5.935,2672.3,2672.2,3.74223]
[1739453715520,9.67718,2672.3,2671.4,3.0]
[1739453715703,3.74282,2671.8,2671.2,3.74359]
[1739453715868,0.0374058,2671.7,2670.9,4.57091]
[1739453716074,6.7384,2672.3,2671.7,3.74284]
[1739453716268,5.935,2672.3,2671.4,0.0075]
[1739453716534,5.935,2672.3,2672.2,3.74223]
[1739453716686,5.935,2672.3,2671.8,3.74269]
[1739453716893,5.935,2672.3,2671.9,3.74261]
[1739453717306,5.935,2672.3,2671.9,3.74256]
[1739453717627,5.935,2672.3,2671.7,3.74286]
[1739453717628,3.7424,2672.1,2671.4,3.74331]
[1739453717819,0.0374058,2672.1,2671.3,3.74346]
[1739453717973,3.7798758,2672.1,2671.5,3.7432]
[1739453718167,9.67715,2672.3,2671.6,6.74304]
[1739453718514,5.935,2672.3,2672.1,7.48454]
[1739453718698,5.935,2672.3,2672.2,3.74223]
[1739453718889,5.935,2672.3,2672.2,3.0]
[1739453719085,3.74168,2672.6,2672.2,3.0]
[1739453719488,3.74168,2672.6,2670.8,4.49684098]
[1739453719489,1.2958058,2672.7,2670.8,3.7516]
[1739453719690,7.48361,2672.6,2671.8,3.74271]
[1739453719905,0.7594,2673.2,2672.4,3.74192]
[1739453720071,0.52187157,2673.1,2672.5,6.74171]
[1739453720276,3.74149,2672.8,2672.2,3.74222]
[1739453720478,3.74134,2672.9,2671.8,0.795]
[1739453720704,3.74134,2672.9,2672.3,3.74206]
[1739453721171,0.06887157,2673.0,2672.5,3.74171]
[1739453721577,0.06887157,2673.0,2671.8,3.795]
[1739453721816,0.06887157,2673.0,2672.9,6.74125]
[1739453722176,5.934,2673.5,2673.0,3.0]
[1739453722377,9.67442,2673.5,2673.0,3.0]
[1739453722675,0.0374058,2673.4,2672.7,3.0]
[1739453722889,3.74081,2673.3,2672.7,3.0]
[1739453723095,3.74107,2673.1,2672.7,3.0]
[1739453723329,3.74133,2672.9,2671.9,0.753786]
[1739453723499,3.74157,2672.7,2672.1,3.74229]
[1739453723704,4.115157,2673.1,2672.5,3.74167]
[1739453723930,0.374107,2673.1,2672.5,3.74176]
[1739453724150,3.74072,2673.3,2672.5,3.74176]
[1739453724324,5.934,2673.5,2672.5,6.74172]
[1739453724524,3.74094,2673.2,2672.5,6.74172]
[1739453724850,0.8094,2673.6,2672.6,0.03741464]
[1739453725005,6.04675946,2673.8,2673.2,3.74078]
[1739453725207,6.04675946,2673.8,2673.2,3.0]
[1739453725208,3.74022,2673.7,2673.2,3.0]
[1739453725540,6.04673946,2673.8,2673.3,3.74068]
[1739453725833,2.30671946,2673.8,2673.1,3.0]
[1739453726042,3.74051,2673.5,2672.6,3.7416]
[1739453726222,3.74104,2673.1,2672.4,3.74182]
[1739453726425,3.74146,2672.8,2671.9,0.8279]
[1739453726659,0.7721,2673.3,2672.3,3.742]
[1739453726797,0.0374058,2673.2,2672.3,3.0]
[1739453726990,0.7721,2673.3,2672.3,3.974223]
[1739453727315,6.04673946,2673.8,2673.2,3.74075]
[1739453727316,6.83915946,2673.8,2673.2,3.74075]
[1739453727634,6.83915946,2673.8,2673.2,3.74071]
[1739453727944,0.0374058,2673.7,2673.1,3.0]
[1739453728240,0.0374058,2673.7,2672.4,3.0]
[1739453728399,3.74085,2673.2,2672.6,3.74159]
[1739453728596,3.74061,2673.4,2672.7,3.74142]
[1739453728923,3.09911946,2673.8,2672.8,0.03741024]
[1739453728924,0.444,2673.6,2672.8,0.03741024]
[1739453729123,0.444,2673.6,2673.1,6.74096]
[1739453729327,0.444,2673.6,2672.3,0.8026]
[1739453729328,0.444,2673.6,2672.6,3.0]
[1739453729498,0.444,2673.6,2673.1,3.7409]
[1739453729708,0.444,2673.6,2673.4,3.74051]
[1739453729906,2.30671946,2673.8,2673.2,0.8148]
[1739453730154,2.30671946,2673.8,2673.3,3.0]
[1739453730449,2.30671946,2673.8,2673.7,6.74013]
[1739453731185,2.30671946,2673.8,2673.7,3.0]
[1739453731387,2.30671946,2673.8,2673.2,4.55558]
[1739453731602,2.30671946,2673.8,2672.8,0.781]
[1739453731805,3.74037,2673.6,2672.8,0.781]
[1739453732104,3.74116,2673.0,2672.3,0.781]
[1739453732248,3.74112,2673.0,2672.6,3.0]
[1739453732454,3.74112,2673.0,2672.4,6.74188]
[1739453732763,3.74112,2673.0,2671.9,4.52359]
[1739453732764,0.8324,2673.5,2672.5,0.0374141]
[1739453732943,4.18164,2673.4,2672.8,3.74133]
[1739453733138,0.441,2673.4,2673.1,3.74094]
[1739453733488,2.30671946,2673.8,2673.3,3.74061]
[1739453733693,2.30671946,2673.8,2673.4,3.74054]
[1739453733857,2.30671946,2673.8,2673.4,3.74043]
[1739453734224,3.74016,2673.7,2673.1,3.74087]
[1739453734427,3.74016,2673.7,2672.8,0.7947]
[1739453734428,2.30671946,2673.8,2672.8,0.7947]
[1739453734635,2.30671946,2673.8,2673.6,3.74026]
[1739453734835,2.30671946,2673.8,2673.6,3.74018]
[1739453734997,2.30671946,2673.8,2673.7,3.0]
[1739453735198,2.30671946,2673.8,2673.4,3.74052]
[1739453735526,3.74014,2673.7,2673.2,3.0]
[1739453735731,2.30671946,2673.8,2673.0,0.03740465]
[1739453735885,2.30671946,2673.8,2672.8,0.7947]
[1739453735886,2.30671946,2673.8,2673.7,3.74013]
[1739453736087,2.30671946,2673.8,2673.6,3.74021]
[1739453736300,2.30671946,2673.8,2673.7,6.74013]
[1739453737034,2.30671946,2673.8,2673.7,3.0]
[1739453737253,2.30671946,2673.8,2673.7,6.74013]
[1739453737404,2.30671946,2673.8,2673.7,3.0]
[1739453737724,2.30671946,2673.8,2673.5,3.0]
[1739453738031,2.30671946,2673.8,2673.2,3.74075]
[1739453738186,2.30671946,2673.8,2672.8,0.7947]
[1739453738527,6.04679946,2673.8,2673.2,6.74076]
[1739453738731,0.08758986,2673.7,2673.2,3.0]
[1739453738897,0.08758986,2673.7,2673.6,6.74027]
[1739453739424,2.30671946,2673.8,2673.6,3.7402]
[1739453739583,2.30671946,2673.8,2673.7,3.0]
[1739453739783,2.38787593,2673.8,2673.7,6.74013]
[1739453739980,2.38787593,2673.8,2673.7,3.0]
[1739453740425,2.38787593,2673.8,2673.7,6.74013]
[1739453740790,2.30671946,2673.8,2673.7,6.74013]
[1739453740987,2.38226209,2673.8,2673.6,3.74017]
[1739453741203,2.38226209,2673.8,2673.7,3.0]
[1739453741400,2.38226209,2673.8,2673.7,3.74013]
[1739453741986,2.38226209,2673.8,2673.3,3.74066]
[1739453742187,2.38226209,2673.8,2673.0,3.74111]
[1739453742396,2.38226209,2673.8,2673.4,6.74053]
[1739453742629,2.38226209,2673.8,2673.4,6.74047]
[1739453742829,2.38226209,2673.8,2673.7,3.74013]
[1739453743040,2.30671946,2673.8,2673.7,3.0]
[1739453743239,2.30671946,2673.8,2673.7,6.74013]
[1739453743240,2.3822326,2673.8,2673.7,6.74013]
[1739453743401,2.3822326,2673.8,2673.7,3.0]
[1739453743805,2.30671946,2673.8,2673.7,3.0]
[1739453744026,6.11946565,2673.8,2673.1,3.74087]
[1739453744343,2.37947565,2673.8,2673.4,7.48095]
[1739453744503,2.37947565,2673.8,2673.4,3.74047]
[1739453744844,2.37947565,2673.8,2673.5,3.0]
[1739453745021,2.37947565,2673.8,2672.9,3.74125]
[1739453745220,2.37947565,2673.8,2673.5,3.0]
[1739453745548,2.37947565,2673.8,2673.4,3.74047]
[1739453745549,3.74014,2673.7,2673.4,3.0]
[1739453745743,3.74032,2673.6,2673.1,3.0]
[1739453745916,0.07277585,2673.6,2673.0,3.0]
[1739453746118,0.07277585,2673.6,2673.5,6.74041]
[1739453746332,2.30671946,2673.8,2673.7,6.74013]
[1739453746500,2.30671946,2673.8,2673.7,3.0]
[1739453746706,2.37941664,2673.8,2673.7,3.0]
[1739453746933,2.37941664,2673.8,2673.7,6.74013]
[1739453747330,2.37941664,2673.8,2673.7,7.788168]
[1739453747531,2.30671946,2673.8,2673.7,7.788168]
[1739453747720,2.30671946,2673.8,2673.7,6.74013]
[1739453748236,2.37949039,2673.8,2673.7,7.08541877]
[1739453749102,2.37949039,2673.8,2673.7,3.34528877]
[1739453749571,2.37949039,2673.8,2673.7,7.08541877]
[1739453749867,2.30671946,2673.8,2673.7,7.08541877]
[1739453750407,4.28895,2674.6,2673.7,7.08541877]
[1739453750408,0.55,2674.6,2673.7,8.18298765]
[1739453750675,0.55,2674.6,2674.5,6.73901]
[1739453751128,0.7822,2675.0,2674.6,3.73886]
[1739453751332,0.7822,2675.0,2674.6,3.0]
[1739453751633,1.2497,2675.5,2675.1,3.73817]
[1739453751831,1.2497,2675.5,2674.6,3.73885]
[1739453752172,1.2497,2675.5,2674.0,3.8148]
[1739453752173,0.8257,2675.5,2674.9,3.73836]
[1739453752313,4.56334,2675.5,2674.8,3.73857]
[1739453752504,3.73779,2675.4,2674.9,3.73844]
[1739453752849,3.73782,2675.4,2674.9,3.73844]
[1739453753360,0.8257,2675.5,2674.9,3.73838]
[1739453753729,0.8257,2675.5,2675.1,3.73805]
[1739453753934,0.07103218,2675.4,2675.3,3.73789]
[1739453754132,0.07103218,2675.4,2675.2,3.73792]
[1739453754323,0.07103218,2675.4,2675.3,3.73789]
[1739453754519,0.07103218,2675.4,2675.3,6.73789]
[1739453754763,5.929,2675.6,2675.4,3.0]
[1739453754933,5.929,2675.6,2675.5,6.73761]
[1739453755134,5.929,2675.6,2675.5,3.0]
[1739453755968,5.929,2675.6,2675.5,6.73761]
[1739453756116,0.8042,2676.3,2675.5,6.73761]
[1739453756117,0.8042,2676.3,2675.6,3.0]
[1739453756312,1.2149,2676.7,2676.1,6.73678]
[1739453756919,0.7949,2676.7,2676.1,6.73678]
[1739453757130,4.52826,2677.2,2676.1,6.73678]
[1739453757349,3.73615,2676.6,2676.1,3.0]
[1739453757670,0.0374058,2676.5,2676.1,3.0]
[1739453757816,3.7358,2676.8,2675.7,3.34379692]
[1739453758014,3.7358,2676.8,2675.5,3.0]
[1739453758015,3.73692,2676.0,2675.5,3.0]
[1739453758259,4.49815,2676.2,2675.5,3.0]
[1739453758762,0.419,2676.3,2675.9,3.73703]
[1739453758946,0.8205,2676.6,2676.0,3.0]
[1739453759120,0.8205,2676.6,2675.9,3.73698]
[1739453759121,1.2385,2676.6,2675.9,3.73697]
[1739453759437,3.73716,2675.9,2674.8,0.7867]
[1739453759765,3.7376,2675.6,2674.8,3.73858]
[1739453759914,4.55777,2675.8,2675.2,3.73791]
[1739453760119,0.418,2675.7,2675.4,3.73775]
[1739453760444,0.418,2675.7,2675.6,3.73747]
[1739453760848,1.2665966,2675.7,2675.0,3.73823]
[1739453761016,5.8e-06,2675.6,2675.5,3.73761]
[1739453761217,8.71560462,2677.0,2675.5,3.73761]
[1739453761218,0.7785,2677.1,2675.5,0.373761]
[1739453761517,0.7785,2677.1,2675.1,0.78103674]
[1739453761518,3.73729,2675.8,2675.1,0.34288616]
[1739453761721,3.73756,2675.6,2675.1,0.34288616]
[1739453761958,0.7785,2675.9,2675.1,0.34288616]
[1739453762171,0.06222171,2675.5,2675.1,0.34288616]
[1739453762471,0.06222171,2675.4,2675.1,0.34288616]
[1739453762617,3.73803,2675.2,2675.1,0.34288616]
[1739453762815,3.73831,2675.0,2674.8,0.34288616]
[1739453763214,0.06222171,2674.9,2674.8,7.08147616]
[1739453763474,0.423,2675.5,2674.8,0.34288616]
[1739453763634,7.47644,2675.1,2674.8,0.34288616]
[1739453763949,0.423,2675.5,2674.3,3.73929]
[1739453763950,0.8203,2675.3,2674.3,3.73929]
[1739453764149,0.8203,2675.3,2673.9,3.73973]
[1739453764150,3.73875,2674.7,2673.9,3.73973]
[1739453764367,0.8203,2674.6,2673.2,4.53072]
[1739453764536,0.8203,2674.6,2673.1,3.74091]
[1739453764537,3.73915,2674.4,2673.1,3.74091]
[1739453764736,3.73989,2673.9,2673.3,3.74068]
[1739453764936,3.74037,2673.6,2672.7,3.74153]
[1739453765263,0.8203,2673.9,2673.2,0.3440538]
[1739453765264,0.06175992,2673.5,2673.2,0.3440538]
[1739453765434,0.8203,2673.9,2673.2,0.3440538]
[1739453765762,0.06174518,2673.8,2673.6,3.74026]
[1739453766131,0.8203,2674.3,2673.7,3.74003]
[1739453766361,0.424,2674.2,2673.7,3.74003]
[1739453766664,0.48354,2674.2,2674.1,3.73957]
[1739453766815,0.48354,2674.2,2673.8,3.0]
[1739453767021,3.73967,2674.1,2673.4,3.74054]
[1739453767252,3.73985,2673.9,2673.2,3.74082]
[1739453767420,0.05954,2673.8,2673.0,3.74108]
[1739453767637,3.74028,2673.6,2673.0,3.74108]
[1739453767992,3.74025,2673.7,2673.0,3.74109]
[1739453768163,0.05954,2673.5,2673.0,3.74109]
[1739453768391,3.74071,2673.3,2672.6,3.74156]
[1739453768542,4.58759,2673.4,2672.7,3.74153]
[1739453768745,4.52805,2673.4,2672.5,3.7418]
[1739453769089,0.05954,2673.3,2672.5,3.7418]
[1739453769240,0.05954,2673.3,2672.3,3.74205]
[1739453769241,3.74092,2673.2,2672.4,3.0]
[1739453769442,0.421,2673.1,2672.5,3.74176]
[1739453769895,0.05954,2673.0,2672.6,3.0]
[1739453770055,0.421,2673.1,2672.3,3.74205]
[1739453770260,0.05954,2673.0,2672.3,0.374205]
[1739453770458,0.05954,2673.0,2672.0,4.50345]
[1739453770645,3.74127,2672.9,2672.4,3.0]
[1739453770847,0.0075,2672.9,2672.1,0.34378323]
[1739453771071,0.762,2672.6,2672.1,0.34378323]
[1739453771431,3.74212,2672.3,2672.1,0.34378323]
[1739453771631,3.74223,2672.2,2672.1,0.34378323]
[1739453771853,5.12027,2672.2,2672.1,0.34378323]
[1739453772162,3.74338,2671.4,2670.8,3.74415]
[1739453772397,4.16238,2671.4,2670.6,3.74443]
[1739453772550,0.75,2671.3,2670.2,3.74497]
[1739453772917,4.55315,2671.3,2670.1,0.7624]
[1739453773219,0.80954,2671.3,2669.9,3.74545]
[1739453773361,0.80954,2671.3,2670.1,3.74503]
[1739453773553,0.80954,2671.3,2669.6,1.85224955]
[1739453773554,3.74436,2670.7,2669.9,3.74532]
[1739453773756,0.015,2671.1,2670.1,3.74509]
[1739453773757,3.74415,2670.9,2670.1,3.74509]
[1739453773994,0.05621047,2670.6,2669.9,3.74532]
[1739453774166,0.375915,2670.9,2670.1,3.74514]
[1739453774167,3.7442,2670.8,2670.1,3.74514]
[1739453774371,0.05621047,2670.5,2670.1,3.74514]
[1739453774582,0.015,2671.1,2670.4,3.74474]
[1739453774788,0.75,2671.3,2669.9,6.78289918]
[1739453775098,0.75,2671.3,2671.2,3.74363]
[1739453775304,0.75,2671.3,2670.6,3.0]
[1739453775604,0.8237,2671.7,2670.6,7.96270857]
[1739453775750,0.416,2672.1,2671.0,3.0]
[1739453775954,0.416,2672.1,2672.0,3.74251]
[1739453776192,0.416,2672.1,2671.5,3.0]
[1739453776193,0.416,2672.1,2671.4,3.74329]
[1739453776367,3.74276,2671.9,2671.3,3.74344]
[1739453776564,3.74276,2671.9,2670.7,0.789]
[1739453776565,3.74287,2671.8,2671.1,3.74364]
[1739453776907,0.415876,2671.9,2671.4,3.0]
[1739453777226,0.416,2672.5,2671.3,3.74343]
[1739453777529,0.7705,2672.9,2672.0,3.74239]
[1739453777651,0.416,2672.8,2672.6,3.74156]
[1739453777857,0.416,2672.8,2672.7,3.74153]
[1739453778085,0.416,2672.8,2672.7,6.74153]
[1739453778654,0.416,2672.8,2672.7,3.0]
[1739453778858,4.15744,2672.8,2671.7,3.7429]
[1739453779157,0.416,2672.8,2672.0,3.74241]
[1739453779394,5.93,2673.0,2672.0,3.74241]
[1739453779395,5.93,2673.0,2672.8,3.7413]
[1739453779725,4.98666,2673.4,2672.9,3.0]
[1739453779921,4.98666,2673.4,2672.7,3.74152]
[1739453779922,3.74078,2673.3,2672.7,3.74152]
[1739453780135,3.74078,2673.3,2672.8,3.0]
[1739453780333,4.98666,2673.4,2672.8,3.0]
[1739453780637,4.98666,2673.4,2672.5,3.7662]
[1739453780638,1.2461,2673.4,2672.5,3.7662]
[1739453780841,1.2461,2673.4,2671.8,8.66802794]
[1739453780842,3.7412,2673.0,2672.3,3.74206]
[1739453781027,3.74098,2673.1,2672.5,3.74171]
[1739453781404,3.74114,2673.0,2672.4,6.74194]
[1739453781742,3.74114,2673.0,2672.4,3.0]
[1739453782093,3.74159,2672.7,2671.8,3.74279]
[1739453782299,3.74208,2672.4,2671.6,3.74298]
[1739453782537,0.413,2672.3,2671.2,4.52288]
[1739453782741,0.413,2672.3,2670.8,4.57305]
[1739453782899,0.413,2672.4,2671.1,4.92526794]
[1739453783099,0.413,2672.4,2672.0,3.0]
[1739453783409,3.74182,2672.5,2671.4,3.0]
[1739453783616,3.74197,2672.4,2671.8,3.74275]
[1739453783819,3.78152615,2672.4,2671.9,3.0]
[1739453784038,3.74281,2671.8,2671.2,3.74361]
[1739453784238,3.74223,2672.2,2671.4,3.74324]
[1739453784435,0.03955615,2672.1,2671.8,3.74278]
[1739453784755,3.74014,2673.7,2672.6,3.74162]
[1739453785050,0.015,2673.2,2671.9,4.92526794]
[1739453785254,0.0075,2673.0,2672.0,3.74241]
[1739453785559,3.74199,2672.4,2671.6,0.8232]
[1739453785778,0.7918,2672.5,2671.8,3.0]
[1739453785913,0.7918,2673.1,2672.3,3.0]
[1739453786222,4.5328,2673.1,2672.6,3.0]
[1739453786426,3.74112,2673.0,2672.6,3.0]
[1739453786624,0.7918,2673.1,2672.8,3.74136]
[1739453786867,6.7116,2673.6,2673.2,3.74083]
[1739453787024,6.7116,2673.6,2673.4,3.74054]
[1739453787025,5.931,2673.6,2673.4,3.74054]
[1739453787290,5.931,2673.6,2672.8,3.74132]
[1739453787419,0.8299,2673.1,2671.9,5.70646794]
[1739453787747,3.74135,2672.9,2672.3,3.74209]
[1739453787929,3.74135,2672.9,2672.2,3.74212]
[1739453787930,0.412,2672.8,2672.4,3.7419]
[1739453788107,0.412,2672.8,2671.9,0.7812]
[1739453788108,0.412,2672.8,2672.6,3.74154]
[1739453788314,0.412,2672.8,2672.0,3.74242]
[1739453788315,3.74155,2672.7,2672.0,3.74242]
[1739453788624,0.412,2672.8,2671.9,0.7812]
[1739453788835,0.412,2672.8,2672.5,3.0]
[1739453789022,0.8199,2672.7,2670.4,3.74472]
[1739453789226,3.74427,2670.8,2670.1,1.02928974]
[1739453789425,0.8187,2670.1,2668.7,3.74713]
[1739453789657,0.8187,2670.1,2668.2,0.8274]
[1739453789658,6.74573,2669.7,2668.2,0.8274]
[1739453789816,12.48722794,2669.4,2668.0,3.56051392]
[1739453790156,0.1,2668.7,2668.0,3.56051392]
[1739453790343,0.1,2668.7,2668.6,3.74728]
[1739453790675,3.74493,2670.3,2668.6,3.74728]
[1739453790676,0.1,2669.1,2669.0,3.74672]
[1739453790874,0.1,2669.5,2669.4,3.74616]
[1739453791032,0.1,2669.7,2669.2,3.74633]
[1739453791225,1.2548,2669.9,2668.5,0.8072]
[1739453791226,1.2548,2669.9,2669.1,3.74658]
[1739453791431,0.1,2669.7,2669.4,3.74611]
[1739453791732,0.1,2669.9,2669.4,3.74607]
[1739453792077,0.1,2670.5,2670.0,3.0]
[1739453792245,0.1,2670.0,2669.7,3.0]
[1739453792781,0.1,2670.0,2669.2,4.94651385]
[1739453792949,0.1,2670.0,2668.7,0.015]
[1739453792950,0.1,2669.5,2669.3,3.0]
[1739453793273,0.1,2669.3,2668.7,4.56882]
[1739453793473,0.1,2669.3,2668.7,0.8218]
[1739453793676,0.1,2669.3,2668.6,3.74724]
[1739453793888,0.1,2668.8,2668.3,0.7594]
[1739453794027,0.1,2668.8,2668.2,3.74783]
[1739453794423,3.74662,2669.1,2668.2,3.74783]
[1739453794424,0.1,2669.4,2668.3,0.015]
[1739453794533,0.1,2669.1,2668.0,4.50742]
[1739453794735,0.1,2669.1,2668.5,3.74729]
[1739453794928,0.1,2669.1,2668.0,0.7594]
[1739453795134,0.1,2669.4,2668.9,3.74685]
[1739453795476,0.1,2669.4,2668.9,3.0]
[1739453795682,0.1,2669.4,2668.0,0.7594]
[1739453795683,0.1,2669.0,2668.0,0.7594]
[1739453795877,0.1,2668.5,2668.0,0.7594]
[1739453796079,0.1,2668.5,2667.6,3.7486]
[1739453796236,5.47526794,2669.4,2667.5,3.74882]
[1739453796237,0.1,2668.3,2667.5,3.74882]
[1739453796436,0.1,2668.3,2667.6,3.0]
[1739453796636,0.426,2668.5,2667.8,3.0]
[1739453796637,0.1,2668.1,2667.8,3.0]
[1739453796841,0.9131,2668.8,2668.1,3.74786]
[1739453797134,0.1,2667.7,2666.9,0.7963]
[1739453797352,0.1,2667.7,2667.1,3.75434]
[1739453797578,0.1,2667.8,2667.1,0.005]
[1739453797777,0.1,2667.8,2667.1,3.0424869]
[1739453798084,3.84842,2667.8,2667.1,0.76382569]
[1739453798237,0.1,2667.6,2667.1,0.76382569]
[1739453798432,0.1,2667.4,2667.1,0.005]
[1739453799349,0.8628,2667.6,2667.4,3.74896]
[1739453799564,0.1,2668.2,2667.2,3.74925]
[1739453799731,0.1,2668.0,2667.9,3.74822]
[1739453799941,0.1,2668.0,2667.6,3.74862]
[1739453800146,0.1,2668.0,2667.3,3.0]
[1739453800147,0.1,2667.7,2667.3,3.0]
[1739453800541,1.208,2668.3,2667.3,3.0]
[1739453800542,0.1,2667.8,2667.5,3.74872]
[1739453800743,0.1,2668.2,2667.7,3.74853]
[1739453800947,0.1,2668.4,2667.3,3.0]
[1739453801177,0.1,2668.2,2668.0,3.74812]
[1739453801477,3.84815,2668.0,2667.3,3.749]
[1739453801786,0.1,2667.6,2667.1,0.005]
[1739453802078,3.7485,2667.8,2667.1,0.005]
[1739453802079,0.1,2667.4,2667.1,0.005]
[1739453802381,0.1,2667.4,2667.2,3.74923]
[1739453802562,0.1,2667.4,2667.3,6.7491]
[1739453802763,0.1,2667.4,2667.1,0.005]
[1739453802964,0.1,2667.2,2667.1,0.005]